bitfinex/quotes_BTCUSD_20250110
["timestamp","ask_amount","ask_price","bid_price","bid_amount"]
[1736519737910,0.30092132,94250.0,94230.0,0.212245]
[1736519738090,0.30092132,94250.0,94225.0,0.0467]
[1736519738091,0.424481,94233.0,94225.0,0.0467]
[1736519738288,0.01164,94233.0,94225.0,0.0467]
[1736519738945,0.00132655,94232.0,94225.0,0.0467]
[1736519739202,0.25429976,94231.0,94208.0,0.0142771]
[1736519739326,0.15,94212.0,94208.0,0.0142771]
[1736519739542,0.25562671,94212.0,94208.0,0.0142771]
[1736519739840,0.212286,94213.0,94208.0,0.0142771]
[1736519740428,0.15,94217.0,94208.0,0.0142771]
[1736519740607,0.212278,94216.0,94208.0,0.0142771]
[1736519740817,0.424556,94216.0,94208.0,0.0142771]
[1736519740987,0.1,94246.0,94208.0,0.0142771]
[1736519740988,0.01164,94231.0,94208.0,0.0142771]
[1736519741176,0.223885,94231.0,94218.0,0.212272]
[1736519741373,0.15,94229.0,94208.0,0.0142771]
[1736519741602,0.42760984,94230.0,94219.0,0.00019313]
[1736519741603,0.15,94220.0,94219.0,0.00019313]
[1736519741830,0.25562658,94220.0,94208.0,0.0142771]
[1736519742029,0.362287,94212.0,94208.0,0.0142771]
[1736519742656,0.29959497,94230.0,94208.0,0.0094481]
[1736519742860,0.1,94240.0,94208.0,0.0094481]
[1736519742861,0.212251,94228.0,94208.0,0.0094481]
[1736519743107,0.01168,94229.0,94211.0,0.212289]
[1736519743311,0.01168,94229.0,94221.0,0.212264]
[1736519743513,0.212196,94253.0,94231.0,0.212243]
[1736519743735,0.212213,94245.0,94228.0,0.212251]
[1736519743931,0.10429976,94252.0,94228.0,0.212251]
[1736519744140,0.29959497,94240.0,94226.0,0.0476]
[1736519744344,0.212245,94231.0,94226.0,0.0476]
[1736519744545,0.42449,94231.0,94226.0,0.0476]
[1736519744747,0.42449,94231.0,94216.0,0.212276]
[1736519744748,0.212265,94222.0,94209.0,0.0777]
[1736519744957,0.26730647,94221.0,94208.0,0.0094481]
[1736519745169,0.212289,94211.0,94208.0,0.0094481]
[1736519745384,0.362293,94209.0,94208.0,0.0094481]
[1736519745798,0.46659276,94209.0,94208.0,0.0094481]
[1736519747046,0.01168,94209.0,94208.0,0.0094481]
[1736519747250,0.212293,94209.0,94208.0,0.0094481]
[1736519747656,0.212287,94212.0,94208.0,0.0044481]
[1736519747905,0.01168,94218.0,94208.0,0.0044481]
[1736519748077,0.01168,94218.0,94209.0,0.21590631]
[1736519748293,0.01168,94225.0,94209.0,0.00361331]
[1736519748497,0.00132674,94224.0,94208.0,0.0044481]
[1736519748698,0.212281,94215.0,94210.0,0.0036144]
[1736519748908,0.223939,94225.0,94208.0,0.0044481]
[1736519749240,0.1,94249.0,94208.0,0.0044481]
[1736519749241,0.01168,94224.0,94213.0,0.212284]
[1736519749444,0.01168,94224.0,94209.0,0.10429976]
[1736519749652,0.01168,94224.0,94220.0,0.212269]
[1736519749965,0.01168,94224.0,94221.0,0.05012639]
[1736519750956,0.21224,94233.0,94221.0,0.05012639]
[1736519751389,0.10429976,94232.0,94221.0,0.05012639]
[1736519751563,0.21226,94224.0,94221.0,0.00362639]
[1736519751720,0.212264,94222.0,94221.0,0.002]
[1736519751913,0.31656376,94222.0,94221.0,0.002]
[1736519752116,0.212264,94222.0,94221.0,0.002]
[1736519752686,0.212253,94227.0,94209.0,0.212293]
[1736519752921,0.01168,94227.0,94209.0,0.10429976]
[1736519753148,0.01168,94227.0,94221.0,0.00362639]
[1736519753379,0.01168,94227.0,94215.0,0.212279]
[1736519753693,0.212251,94228.0,94217.0,0.212275]
[1736519753900,0.212244,94232.0,94222.0,0.212263]
[1736519754127,0.212244,94232.0,94209.0,0.10429976]
[1736519754128,0.29959497,94260.0,94218.0,0.00362312]
[1736519754299,0.212219,94242.0,94229.0,0.212248]
[1736519754748,0.212212,94246.0,94233.0,0.212238]
[1736519754920,0.212212,94246.0,94230.0,0.00363619]
[1736519754921,0.01168,94247.0,94230.0,0.00363619]
[1736519755136,0.00132638,94246.0,94234.0,0.00364055]
[1736519755340,0.00132638,94246.0,94229.0,0.0753]
[1736519755538,0.212212,94245.0,94235.0,0.00364164]
[1736519755745,0.212212,94245.0,94234.0,0.212236]
[1736519756019,0.0013265,94244.0,94236.0,0.00364273]
[1736519756296,0.212217,94243.0,94235.0,0.00364164]
[1736519756434,0.21354551,94242.0,94235.0,0.00364164]
[1736519756634,0.212228,94238.0,94229.0,0.0753]
[1736519756850,0.212219,94242.0,94230.0,0.212246]
[1736519757045,0.10429976,94259.0,94230.0,0.212246]
[1736519757046,0.1,94283.0,94231.0,0.15169976]
[1736519757248,0.01168,94277.0,94234.0,0.023]
[1736519757450,0.29976597,94280.0,94241.0,0.10429976]
[1736519757451,0.000171,94280.0,94241.0,0.10429976]
[1736519757651,0.212306,94280.0,94270.0,0.212156]
[1736519757856,0.000171,94280.0,94271.0,0.212153]
[1736519758066,0.000171,94280.0,94277.0,0.21214]
[1736519758268,0.042508,94290.0,94289.0,0.462113]
[1736519758471,0.29959497,94360.0,94289.0,0.462113]
[1736519758472,0.05779989,94340.0,94301.0,0.15]
[1736519758652,0.05779989,94340.0,94308.0,0.212071]
[1736519758907,0.05779989,94340.0,94322.0,0.212037]
[1736519759098,0.05779989,94340.0,94309.0,0.10801252]
[1736519759099,0.00149621,94337.0,94309.0,0.00371276]
[1736519759303,0.00149621,94337.0,94289.0,0.1244]
[1736519759304,0.29959497,94330.0,94289.0,0.1244]
[1736519759526,0.0001712,94337.0,94315.0,0.212053]
[1736519759745,0.0001712,94337.0,94329.0,0.212021]
[1736519759952,0.0001712,94337.0,94316.0,0.1080044]
[1736519760156,0.0001712,94337.0,94330.0,0.00368839]
[1736519760360,0.15,94328.0,94291.0,0.212109]
[1736519760595,0.29959497,94310.0,94290.0,0.212111]
[1736519760771,0.29959497,94310.0,94273.0,0.22840319]
[1736519760772,0.15,94307.0,94289.0,0.0791]
[1736519760976,0.212104,94293.0,94291.0,0.00748308]
[1736519761184,0.01168,94312.0,94270.0,0.0774]
[1736519761388,0.15,94300.0,94292.0,0.00748053]
[1736519761707,0.212089,94300.0,94285.0,0.21212]
[1736519761940,0.15,94309.0,94271.0,0.10429976]
[1736519762145,0.01168,94307.0,94271.0,0.10429976]
[1736519762352,0.212008,94336.0,94290.0,0.44959497]
[1736519762553,0.212008,94336.0,94272.0,0.30753163]
[1736519762554,0.01022863,94337.0,94305.0,0.15]
[1736519762767,0.01022863,94337.0,94336.0,0.212008]
[1736519762768,0.0001712,94337.0,94336.0,0.212008]
[1736519762971,0.0001712,94337.0,94334.0,0.212011]
[1736519763186,0.0001712,94337.0,94334.0,0.424023]
[1736519763390,0.0001712,94337.0,94336.0,0.212008]
[1736519763608,0.0001712,94337.0,94336.0,0.31630776]
[1736519763832,0.0001712,94337.0,94336.0,0.4489479]
[1736519764043,0.211907,94381.0,94336.0,0.2369399]
[1736519764254,0.211918,94376.0,94356.0,0.211961]
[1736519764434,0.4238,94384.0,94368.0,0.211935]
[1736519764696,0.4238,94384.0,94357.0,0.10429976]
[1736519764697,0.01168,94385.0,94358.0,0.211958]
[1736519764910,0.2119,94384.0,94368.0,0.211934]
[1736519765138,0.0001712,94399.0,94383.0,0.211902]
[1736519765139,0.211868,94398.0,94383.0,0.211902]
[1736519765347,0.2120392,94399.0,94381.0,0.211906]
[1736519765626,0.211895,94387.0,94379.0,0.075]
[1736519765825,0.00132451,94386.0,94382.0,0.00725081]
[1736519766000,0.00132451,94386.0,94356.0,0.423923]
[1736519766176,0.15,94382.0,94356.0,0.211963]
[1736519766409,0.211925,94373.0,94357.0,0.00731458]
[1736519766593,0.211949,94363.0,94357.0,0.00731458]
[1736519766794,0.573902,94361.0,94357.0,0.00731458]
[1736519766993,0.212,94340.0,94336.0,0.1298]
[1736519767236,0.15,94339.0,94321.0,0.22840319]
[1736519767536,0.212052,94317.0,94295.0,0.0782]
[1736519767786,0.12729976,94338.0,94295.0,0.0782]
[1736519767787,0.15,94326.0,94322.0,0.00740391]
[1736519768001,0.273,94323.0,94293.0,0.22840319]
[1736519768236,0.212066,94311.0,94297.0,0.212094]
[1736519768443,0.29959497,94330.0,94293.0,0.10429976]
[1736519768653,0.212058,94314.0,94297.0,0.10429976]
[1736519768864,0.01168,94319.0,94293.0,0.10429976]
[1736519769065,0.212048,94318.0,94292.0,0.212105]
[1736519769272,0.212068,94309.0,94292.0,0.212105]
[1736519769484,0.212068,94309.0,94269.0,0.212157]
[1736519769485,0.10429976,94309.0,94269.0,0.212157]
[1736519769697,0.212114,94289.0,94274.0,0.212145]
[1736519769917,0.29959497,94300.0,94255.0,0.22840319]
[1736519769918,0.212123,94285.0,94267.0,0.212162]
[1736519770128,0.173,94307.0,94267.0,0.212162]
[1736519770346,0.212158,94270.0,94255.0,0.22840319]
[1736519770554,0.15,94299.0,94253.0,0.0831]
[1736519770555,0.21217,94264.0,94253.0,0.0831]
[1736519770766,0.212178,94261.0,94253.0,0.0831]
[1736519770978,0.01168,94275.0,94233.0,0.212239]
[1736519770979,0.212208,94247.0,94233.0,0.212239]
[1736519771190,0.29959497,94260.0,94234.0,0.10429976]
[1736519771400,0.212217,94243.0,94231.0,0.0831]
[1736519771621,0.01168,94242.0,94231.0,0.0831]
[1736519772071,0.01168,94242.0,94222.0,0.0496]
[1736519772280,0.212237,94235.0,94222.0,0.0496]
[1736519772488,0.29959497,94240.0,94222.0,0.0496]
[1736519772694,0.15,94249.0,94223.0,0.207262]
[1736519772898,0.01172,94239.0,94222.0,0.0496]
[1736519773107,0.21224,94233.0,94222.0,0.0496]
[1736519773355,0.01172,94239.0,94222.0,0.0496]
[1736519773356,0.00132658,94232.0,94222.0,0.0496]
[1736519773555,0.00132661,94238.0,94222.0,0.0496]
[1736519773767,0.212177,94261.0,94223.0,0.10429976]
[1736519773999,0.212177,94261.0,94245.0,0.21221]
[1736519774214,0.01172,94264.0,94236.0,0.212231]
[1736519774429,0.01172,94264.0,94246.0,0.00556315]
[1736519774648,0.29959497,94300.0,94247.0,0.28039976]
[1736519774860,0.11896,94336.0,94255.0,0.31648976]
[1736519774861,0.0425,94302.0,94255.0,0.31648976]
[1736519775073,0.0425,94302.0,94266.0,0.15]
[1736519775289,0.29959497,94330.0,94279.0,0.1]
[1736519775290,0.212059,94314.0,94279.0,0.1]
[1736519775505,0.29959497,94300.0,94272.0,0.10429976]
[1736519775714,0.01172,94319.0,94280.0,0.00641791]
[1736519775924,0.042487,94333.0,94285.0,0.15]
[1736519776127,0.29959497,94350.0,94295.0,0.2121]
[1736519776342,0.01172,94355.0,94337.0,0.212003]
[1736519776554,0.04248,94349.0,94343.0,0.423983]
[1736519776760,0.001,94357.0,94351.0,0.211973]
[1736519776968,0.001,94357.0,94344.0,0.0795]
[1736519776969,0.001,94357.0,94353.0,0.211969]
[1736519777173,0.001,94357.0,94352.0,0.00475449]
[1736519777358,0.001,94357.0,94355.0,0.211963]
[1736519777559,0.001,94357.0,94355.0,0.211965]
[1736519777770,0.001,94357.0,94356.0,0.11063058]
[1736519777978,0.001,94357.0,94356.0,0.36063058]
[1736519778176,0.00132428,94396.0,94356.0,0.11063058]
[1736519778406,0.29959497,94390.0,94356.0,0.11063058]
[1736519778614,0.01172,94397.0,94358.0,0.10429976]
[1736519778822,0.01172,94397.0,94381.0,0.211905]
[1736519779032,0.29959497,94391.0,94359.0,0.00632444]
[1736519779235,0.211902,94383.0,94382.0,0.00627555]
[1736519779447,0.10562431,94390.0,94361.0,0.21195]
[1736519779448,0.211917,94377.0,94361.0,0.21195]
[1736519779705,0.211876,94395.0,94362.0,0.10429976]
[1736519779914,8.54e-05,94403.0,94362.0,0.10429976]
[1736519779915,0.00132442,94394.0,94373.0,0.211923]
[1736519780125,8.54e-05,94403.0,94374.0,0.10429976]
[1736519780341,8.54e-05,94403.0,94362.0,0.00631806]
[1736519780342,8.54e-05,94403.0,94398.0,0.211868]
[1736519780545,8.54e-05,94403.0,94398.0,0.39836776]
[1736519780958,8.54e-05,94403.0,94398.0,0.08844156]
[1736519780959,0.01668938,94403.0,94398.0,0.08844156]
[1736519781612,0.01668938,94403.0,94398.0,0.40460932]
[1736519781613,8.54e-05,94403.0,94398.0,0.40460932]
[1736519782040,8.54e-05,94403.0,94398.0,0.08844156]
[1736519782459,8.54e-05,94403.0,94398.0,0.19274132]
[1736519782672,8.54e-05,94403.0,94398.0,0.00624156]
[1736519782673,0.2119434,94403.0,94398.0,0.00624156]
[1736519782876,8.54e-05,94403.0,94398.0,0.00624156]
[1736519783079,8.54e-05,94403.0,94376.0,0.211918]
[1736519783319,8.54e-05,94403.0,94398.0,0.00624156]
[1736519783497,0.2119434,94403.0,94398.0,0.004]
[1736519783701,0.4238014,94403.0,94398.0,0.004]
[1736519783908,0.02270702,94399.0,94398.0,0.004]
[1736519784114,0.27879543,94399.0,94398.0,0.004]
[1736519784316,0.27747096,94399.0,94398.0,0.004]
[1736519784523,0.27747096,94399.0,94355.0,0.0774]
[1736519784524,0.211963,94356.0,94355.0,0.0774]
[1736519784735,0.01172,94359.0,94333.0,0.212014]
[1736519784937,0.01172,94361.0,94345.0,0.211985]
[1736519785156,0.01172,94361.0,94345.0,0.10429976]
[1736519785370,0.023,94357.0,94346.0,0.00635208]
[1736519785573,0.211958,94358.0,94346.0,0.00635208]
[1736519785574,0.361983,94347.0,94346.0,0.00635208]
[1736519785777,0.361983,94347.0,94309.0,0.0773]
[1736519785778,0.361985,94346.0,94309.0,0.0773]
[1736519785989,0.15,94339.0,94309.0,0.0773]
[1736519786193,0.424068,94325.0,94310.0,0.00428578]
[1736519786402,0.424068,94325.0,94311.0,0.212064]
[1736519786403,0.212034,94325.0,94311.0,0.212064]
[1736519786612,0.01172,94329.0,94317.0,0.212049]
[1736519786825,0.01172,94329.0,94312.0,0.00481831]
[1736519787027,0.01172,94329.0,94309.0,0.0773]
[1736519787028,0.00132527,94328.0,94318.0,0.00480873]
[1736519787285,0.00132527,94328.0,94309.0,0.0773]
[1736519787286,0.212043,94321.0,94309.0,0.0773]
[1736519787490,0.212055,94315.0,94301.0,0.046]
[1736519787697,0.66165897,94311.0,94310.0,0.0048215]
[1736519787898,0.15,94310.0,94288.0,0.0811]
[1736519788103,0.212108,94292.0,94276.0,0.048]
[1736519788412,0.01172,94291.0,94289.0,0.0061326]
[1736519788587,0.01172,94291.0,94277.0,0.21829815]
[1736519788788,0.01172,94291.0,94290.0,0.00613047]
[1736519788990,0.01172,94291.0,94278.0,0.212138]
[1736519789218,0.01172,94291.0,94276.0,0.048]
[1736519789219,0.01172,94291.0,94277.0,0.21214]
[1736519789427,0.01172,94291.0,94279.0,0.21828989]
[1736519789640,0.212131,94282.0,94278.0,0.00615602]
[1736519789819,0.212131,94282.0,94280.0,0.00615176]
[1736519790038,0.212113,94290.0,94268.0,0.0811]
[1736519790039,0.212143,94276.0,94268.0,0.0811]
[1736519790246,0.15,94289.0,94278.0,0.002]
[1736519790469,0.212129,94282.0,94278.0,0.002]
[1736519790668,0.212106,94293.0,94278.0,0.002]
[1736519790873,0.01304575,94292.0,94278.0,0.002]
[1736519791075,0.15,94290.0,94279.0,0.00615389]
[1736519791273,0.15,94290.0,94278.0,0.002]
[1736519791274,0.212127,94284.0,94278.0,0.002]
[1736519791558,0.212143,94276.0,94268.0,0.0811]
[1736519791804,0.212127,94284.0,94268.0,0.0811]
[1736519792030,0.001,94282.0,94269.0,0.00741023]
[1736519792320,0.001,94282.0,94270.0,0.212156]
[1736519792572,0.00132592,94285.0,94269.0,0.00741023]
[1736519792775,0.212125,94284.0,94271.0,0.00617093]
[1736519792984,0.16172,94290.0,94270.0,0.00617306]
[1736519792985,0.29959497,94281.0,94270.0,0.00617306]
[1736519793185,0.29959497,94281.0,94251.0,0.258698]
[1736519793186,0.212152,94272.0,94251.0,0.258698]
[1736519793393,0.00132607,94271.0,94252.0,0.212197]
[1736519793608,0.00132607,94271.0,94251.0,0.0465]
[1736519793814,0.00132607,94271.0,94228.0,0.00587]
[1736519793815,0.15,94260.0,94228.0,0.00587]
[1736519794019,0.15,94249.0,94228.0,0.00587]
[1736519794224,0.46783231,94248.0,94228.0,0.00587]
[1736519794397,0.46650576,94248.0,94228.0,0.00587]
[1736519794610,0.48950576,94248.0,94228.0,0.00587]
[1736519795831,0.47150576,94248.0,94228.0,0.00587]
[1736519796425,0.54659644,94248.0,94228.0,0.00587]
[1736519796638,0.54959644,94248.0,94228.0,0.00587]
[1736519796864,0.362248,94229.0,94228.0,0.00587]
[1736519797066,0.48954776,94229.0,94228.0,0.00587]
[1736519797893,0.48954776,94229.0,94228.0,0.00087]
[1736519798252,0.46654776,94229.0,94228.0,0.00087]
[1736519798453,0.373968,94229.0,94228.0,0.00087]
[1736519799052,0.15,94229.0,94228.0,0.00087]
[1736519799249,0.01172,94229.0,94228.0,0.00087]
[1736519799445,0.29959497,94250.0,94228.0,0.00087]
[1736519799446,0.01172,94232.0,94228.0,0.00087]
[1736519799671,0.212244,94231.0,94228.0,0.00623791]
[1736519799870,0.212244,94231.0,94228.0,0.00187]
[1736519800074,0.212248,94229.0,94228.0,0.00187]
[1736519800280,0.46654776,94229.0,94228.0,0.00187]
[1736519800487,0.362248,94229.0,94228.0,0.00187]
[1736519801296,0.362248,94229.0,94228.0,0.00087]
[1736519801692,0.362248,94229.0,94228.0,0.00187]
[1736519801894,0.212248,94229.0,94228.0,0.00187]
[1736519802122,0.224368,94229.0,94228.0,0.00087]
[1736519802415,0.01212,94229.0,94228.0,0.00087]
[1736519802641,0.22163107,94229.0,94228.0,0.00087]
[1736519802843,0.22163107,94229.0,94170.0,8.55e-05]
[1736519802844,0.212311,94201.0,94170.0,8.55e-05]
[1736519803046,0.29959497,94210.0,94170.0,8.55e-05]
[1736519803047,0.212325,94195.0,94170.0,8.55e-05]
[1736519803249,0.224445,94195.0,94170.0,8.55e-05]
[1736519803603,0.32874476,94195.0,94170.0,8.55e-05]
[1736519803864,0.47874476,94195.0,94170.0,8.55e-05]
[1736519804190,0.1,94219.0,94170.0,8.55e-05]
[1736519804191,0.22329488,94216.0,94181.0,0.212354]
[1736519804422,0.22329488,94216.0,94195.0,0.10429976]
[1736519804423,0.01212,94215.0,94195.0,0.10429976]
[1736519804661,0.212284,94213.0,94194.0,0.2124116]
[1736519804868,0.29959497,94210.0,94196.0,0.00708514]
[1736519804991,0.29959497,94210.0,94195.0,0.0070877]
[1736519804992,0.213312,94201.0,94195.0,0.0070877]
[1736519805195,0.001,94201.0,94194.0,8.56e-05]
[1736519805430,0.00132702,94211.0,94210.0,0.212291]
[1736519805708,0.01101539,94228.0,94195.0,0.10429976]
[1736519805709,0.29959497,94220.0,94195.0,0.0531877]
[1736519805870,0.29959497,94220.0,94210.0,0.00704931]
[1736519805871,0.212287,94212.0,94210.0,0.00704931]
[1736519806022,0.00132697,94211.0,94195.0,0.339323]
[1736519806222,0.21361398,94213.0,94195.0,0.127]
[1736519806426,0.01212,94219.0,94196.0,0.1113849]
[1736519806649,0.01212,94218.0,94196.0,0.1113849]
[1736519806851,0.224379,94225.0,94196.0,0.1113849]
[1736519807055,0.01212,94226.0,94212.0,0.212285]
[1736519807278,0.21226,94224.0,94209.0,0.212293]
[1736519807455,0.02376468,94223.0,94213.0,0.00704163]
[1736519807656,0.212288,94212.0,94197.0,0.20732]
[1736519807864,0.212277,94217.0,94196.0,0.10429976]
[1736519808112,0.29959497,94210.0,94198.0,0.00708002]
[1736519808320,0.15,94200.0,94197.0,0.00708258]
[1736519808541,0.212294,94209.0,94195.0,0.001]
[1736519808720,0.212312,94201.0,94194.0,8.56e-05]
[1736519808908,0.212307,94203.0,94194.0,8.56e-05]
[1736519809252,0.01212,94214.0,94195.0,0.11138746]
[1736519809401,0.224394,94218.0,94203.0,0.212307]
[1736519809804,0.15,94222.0,94204.0,0.00706466]
[1736519810020,0.01212,94221.0,94204.0,0.00706466]
[1736519810221,0.212269,94220.0,94195.0,0.10429976]
[1736519810403,0.212282,94215.0,94205.0,0.0070621]
[1736519810603,0.51186497,94220.0,94196.0,0.212323]
[1736519810818,0.51186497,94220.0,94194.0,0.0010856]
[1736519810819,0.29959497,94210.0,94194.0,0.0010856]
[1736519811032,0.21231,94202.0,94197.0,0.00708258]
[1736519811240,0.212318,94198.0,94195.0,0.0070877]
[1736519811451,0.212318,94198.0,94194.0,0.0010856]
[1736519811452,0.00132719,94197.0,94194.0,0.0010856]
[1736519811663,0.212323,94196.0,94194.0,8.56e-05]
[1736519811866,0.0013272,94195.0,94194.0,8.56e-05]
[1736519812712,0.21231,94202.0,94174.0,0.212371]
[1736519812713,0.212333,94192.0,94176.0,0.212368]
[1736519812922,0.212333,94192.0,94177.0,0.00713379]
[1736519813127,0.212344,94187.0,94177.0,0.00713379]
[1736519813335,0.01212,94187.0,94177.0,0.00713379]
[1736519813547,0.01212,94187.0,94173.0,0.0802]
[1736519813548,0.212356,94182.0,94173.0,0.0802]
[1736519813770,0.212364,94178.0,94170.0,8.55e-05]
[1736519813977,0.212358,94181.0,94170.0,8.55e-05]
[1736519814805,0.212366,94177.0,94170.0,8.55e-05]
[1736519815065,0.15132745,94176.0,94170.0,8.55e-05]
[1736519815239,0.25562721,94176.0,94170.0,8.55e-05]
[1736519815439,0.25429976,94176.0,94170.0,8.55e-05]
[1736519816136,0.27729976,94176.0,94170.0,8.55e-05]
[1736519816564,0.212399,94162.0,94143.0,8.55e-05]
[1736519816782,0.48969876,94162.0,94143.0,8.55e-05]
[1736519816991,0.36242,94153.0,94143.0,8.55e-05]
[1736519817204,0.212433,94147.0,94143.0,8.55e-05]
[1736519817420,0.55086044,94147.0,94143.0,8.55e-05]
[1736519817687,0.57947551,94147.0,94143.0,8.55e-05]
[1736519817896,0.57947551,94147.0,94114.0,0.0815]
[1736519817897,0.212501,94117.0,94114.0,0.0768421]
[1736519818080,0.01212,94116.0,94114.0,0.0768421]
[1736519818543,0.212505,94115.0,94100.0,8.55e-05]
[1736519818755,0.00132836,94114.0,94100.0,8.55e-05]
[1736519818965,0.25562812,94114.0,94100.0,8.55e-05]
[1736519819170,0.26641976,94114.0,94108.0,8.55e-05]
[1736519819610,0.28941976,94114.0,94108.0,8.55e-05]
[1736519819827,0.31803483,94114.0,94108.0,8.55e-05]
[1736519820035,0.31803483,94114.0,94080.0,8.55e-05]
[1736519820036,0.1,94103.0,94080.0,8.55e-05]
[1736519820244,0.362582,94081.0,94080.0,8.55e-05]
[1736519820453,0.374702,94081.0,94080.0,8.55e-05]
[1736519821092,0.374702,94081.0,94043.0,0.082]
[1736519821093,0.15,94057.0,94043.0,0.082]
[1736519821304,0.15,94057.0,94035.0,0.0465]
[1736519821305,0.362643,94055.0,94035.0,0.0465]
[1736519821539,0.362646,94053.0,94051.0,6e-07]
[1736519821752,0.335657,94048.0,93993.0,0.1]
[1736519821968,0.1,94034.0,93980.0,0.082]
[1736519822189,0.49131844,94034.0,93980.0,0.082]
[1736519822400,0.21272,94020.0,93980.0,0.082]
[1736519822618,0.46701976,94020.0,94019.0,0.00642241]
[1736519822832,0.47913976,94020.0,94019.0,0.00642241]
[1736519823056,0.47913976,94020.0,94019.0,0.00142241]
[1736519823280,0.29959497,94040.0,94019.0,0.00142241]
[1736519823504,0.29959497,94030.0,94019.0,0.00142241]
[1736519823720,0.15,94029.0,94019.0,0.00142241]
[1736519823965,0.15132953,94029.0,94019.0,0.00142241]
[1736519824171,0.15,94029.0,94019.0,0.00142241]
[1736519824386,0.00132947,94028.0,94019.0,0.00142241]
[1736519824594,0.15,94023.0,94019.0,0.00142241]
[1736519824827,0.15,94023.0,93980.0,0.082]
[1736519824828,0.37729976,94020.0,93980.0,0.082]
[1736519825051,0.212803,93984.0,93970.0,0.00011408]
[1736519825294,0.29959497,93980.0,93970.0,0.00011408]
[1736519825500,0.01212,93981.0,93967.0,0.212839]
[1736519825712,0.15,93983.0,93951.0,0.0805]
[1736519825713,0.29959497,94000.0,93983.0,0.212803]
[1736519825920,0.01212,94003.0,93971.0,0.10429976]
[1736519826146,0.29959497,94000.0,93983.0,0.212802]
[1736519826353,0.29959497,94000.0,93983.0,0.10429976]
[1736519826570,0.21409777,93999.0,93973.0,0.212826]
[1736519826756,0.29959497,94000.0,93956.0,0.1000856]
[1736519826757,0.15,94007.0,93984.0,0.01198214]
[1736519826992,0.29959497,94020.0,93974.0,0.10429976]
[1736519826993,0.212725,94018.0,93986.0,0.1256]
[1736519827219,0.29959497,94000.0,93986.0,0.1256]
[1736519827448,0.21279,93990.0,93985.0,0.01197786]
[1736519827659,0.00133015,93989.0,93966.0,0.0804]
[1736519827885,0.44959497,93980.0,93966.0,0.0754]
[1736519828126,0.44959497,93980.0,93931.0,0.2]
[1736519828127,0.212847,93964.0,93940.0,0.0498]
[1736519828363,0.00133039,93963.0,93941.0,0.21299476]
[1736519828597,0.29959497,93990.0,93947.0,0.212885]
[1736519828802,0.212837,93969.0,93947.0,0.212885]
[1736519829042,0.15,93974.0,93947.0,0.212885]
[1736519829250,0.02767663,93962.0,93953.0,0.212871]
[1736519829457,0.15,93970.0,93953.0,0.212871]
[1736519829659,0.01668052,93966.0,93947.0,0.212885]
[1736519829882,0.21285,93963.0,93941.0,9.576e-05]
[1736519830134,0.362863,93957.0,93941.0,9.576e-05]
[1736519830395,0.66716276,93957.0,93956.0,6e-07]
[1736519830616,0.362897,93942.0,93941.0,9.576e-05]
[1736519830825,0.47935676,93942.0,93941.0,9.576e-05]
[1736519831700,0.50235676,93942.0,93941.0,9.576e-05]
[1736519831916,0.47935676,93942.0,93941.0,9.576e-05]
[1736519832132,0.47967676,93942.0,93941.0,9.576e-05]
[1736519832347,0.69322084,93942.0,93941.0,9.576e-05]
[1736519832553,0.69322084,93942.0,93924.0,0.0142771]
[1736519832554,0.1,93930.0,93924.0,0.0142771]
[1736519832764,0.59023476,93925.0,93924.0,0.0142771]
[1736519833024,0.49023476,93925.0,93924.0,0.0092771]
[1736519833866,0.59023476,93925.0,93924.0,0.0092771]
[1736519834108,0.69453452,93925.0,93924.0,0.0092771]
[1736519834344,0.562949,93919.0,93918.0,8.57e-05]
[1736519834574,0.46724876,93919.0,93918.0,8.57e-05]
[1736519834813,0.47972876,93919.0,93918.0,8.57e-05]
[1736519835201,0.11677976,93919.0,93918.0,8.57e-05]
[1736519835445,0.01248,93919.0,93918.0,8.57e-05]
[1736519835656,0.31724876,93919.0,93918.0,8.57e-05]
[1736519835870,0.50272876,93919.0,93918.0,0.00928461]
[1736519836077,0.65588035,93919.0,93918.0,8.57e-05]
[1736519836288,0.50272876,93919.0,93918.0,8.57e-05]
[1736519836495,0.47972876,93919.0,93918.0,8.57e-05]
[1736519836934,0.26677976,93919.0,93918.0,8.57e-05]
[1736519837350,0.01248,93919.0,93918.0,8.57e-05]
[1736519837785,0.01248,93919.0,93906.0,0.213047]
[1736519837786,0.00133105,93930.0,93913.0,0.2080477]
[1736519837998,0.00133105,93930.0,93906.0,7e-05]
[1736519837999,0.25429976,93929.0,93906.0,7e-05]
[1736519838176,0.362949,93919.0,93906.0,7e-05]
[1736519838411,0.212967,93911.0,93906.0,7e-05]
[1736519838623,0.29959497,93950.0,93908.0,0.212974]
[1736519838834,0.05380373,94022.0,93906.0,7e-05]
[1736519838835,0.10563073,93949.0,93909.0,0.10429976]
[1736519839040,0.15,93939.0,93908.0,0.212974]
[1736519839248,0.15,93937.0,93918.0,0.002]
[1736519839465,0.22292779,93960.0,93918.0,0.002]
[1736519839466,0.2,93981.0,93919.0,0.10429976]
[1736519839676,0.10429976,93979.0,93921.0,0.15]
[1736519839879,0.10429976,93979.0,93935.0,0.212913]
[1736519840089,0.01248,93985.0,93932.0,0.10429976]
[1736519840306,0.00133021,93984.0,93944.0,0.25]
[1736519840511,0.212809,93981.0,93961.0,0.212854]
[1736519840716,0.32100785,94000.0,93961.0,0.212854]
[1736519840717,0.32100785,94000.0,93961.0,0.31715376]
[1736519840927,0.29959497,93990.0,93962.0,0.01207646]
[1736519841142,0.212849,93964.0,93962.0,0.01207646]
[1736519841425,0.00133059,93963.0,93945.0,0.0457]
[1736519841633,0.15,93959.0,93943.0,0.0763]
[1736519841839,0.362892,93944.0,93943.0,0.0763]
[1736519842047,0.023,93942.0,93921.0,0.0508]
[1736519842259,0.21294,93923.0,93921.0,0.001]
[1736519842469,0.212935,93925.0,93906.0,7e-05]
[1736519842470,0.212926,93930.0,93912.0,0.212965]
[1736519842695,0.212955,93917.0,93906.0,0.08087]
[1736519842909,0.00133092,93929.0,93906.0,0.08087]
[1736519842910,0.00133116,93916.0,93913.0,0.01035954]
[1736519843112,0.212976,93907.0,93906.0,7e-05]